[Event "24th Hoogeschool Zeeland 2022"]
[Site "Vlissingen"]
[Date "2022.08.10"]
[Round "6.7"]
[White "Schoppen, Casper"]
[Black "Stillger, Bernhard"]
[Result "1/2-1/2"]
[ECO "C10"]
[WhiteElo "2507"]
[BlackElo "2245"]
[Annotator "TA"]
[PlyCount "83"]
[EventDate "2022.08.05"]
[EventType "swiss"]
[EventCountry "NED"]
[SourceTitle "playchess.com"]
[Source "ChessBase"]
[SourceQuality "1"]
[TimeControl "40/5400+30:1800+30"]

{[%evp 9,83,35,41,38,37,34,66,44,36,2,17,16,21,6,17,8,12,13,16,-17,45,44,43,40,52,41,56,62,62,60,60,54,29,0,0,-29,127,104,135,74,128,126,191,141,164,181,198,198,196,98,100,66,92,137,135,-635,-642,-642,-603,-890,-101,-626,-397,-381,0,0,0,0,0,0,0,-40,0,0,0,0]} 1. e4 {[%emt 0:04:56]} e6 {[%emt 0:00:19]} 2. d4 {[%emt 0:00:06]} d5 {[%emt 0:00:04]} 3. Nc3 {[%emt 0:00:09]} Nc6 {[%emt 0:00:30]} 4. e5 {[%emt 0:00:47]} a6 {[%emt 0:00:17]} 5. f4 {[%emt 0:04:38]} Nh6 {[%emt 0:01:04]} 6. Nf3 {[%emt 0:01:34] C10: French with 3 Nc3: Unusual Black 3rd moves and 3...dxe4.} Nf5 {[%emt 0:01:48]} 7. Ne2 {[%emt 0:01:31]} b6 {[%emt 0:05:37]} 8. c3 {[%emt 0:03:56] [#] White is slightly better.} h5 $146 {[%emt 0:02:34]} ({Predecessor:} 8... a5 9. g3 Ba6 10. Bh3 h5 11. O-O Be7 12. Qc2 g6 13. Re1 Qd7 14. b3 a4 {0-1 (55) Haufe,L (2026)-Kersten,U (2252) Playchess.com INT 2020}) 9. Neg1 {[%emt 0:05:28]} Nce7 {[%emt 0:07:15]} 10. Bd3 {[%emt 0:07:13]} c5 {[%emt 0:03:26]} 11. Ne2 {[%emt 0:02:43]} Bd7 {[%emt 0:02:42]} 12. a4 {[%emt 0:01:54]} g6 {[%emt 0:03:34]} 13. O-O {[%emt 0:04:02]} Nc6 {[%emt 0:04:06]} 14. Ng3 {[%emt 0:14:46]} Be7 {[%emt 0:11:37]} (14... Nxg3 $11 15. hxg3 c4) 15. Nxf5 $14 {[%emt 0:03:54]} gxf5 {[%emt 0:00:14]} 16. Be2 {[%emt 0:02:13]} c4 {[%emt 0:05:12]} 17. b3 {[%emt 0:04:55]} Na5 {[%emt 0:10:25]} 18. bxc4 {[%emt 0:02:45]} Nxc4 {[%emt 0:02:19]} 19. Ng5 {[%emt 0:03:46]} h4 {[%emt 0:08:22]} 20. Rf3 {[%emt 0:05:36]} b5 {[%emt 0:03:44]} 21. Rh3 {[%emt 0:03:29]} (21. a5 $5) 21... bxa4 {[%emt 0:02:58]} 22. Qe1 {[%emt 0:06:59]} Bxg5 {[%emt 0:06:11]} (22... Qa5 $11) 23. fxg5 $16 {[%emt 0:00:09]} Bc6 {[%emt 0:00:29]} 24. g3 {[%emt 0:06:50]} (24. Rxh4 $142 Rxh4 25. Qxh4) 24... Rb8 {[%emt 0:04:43]} (24... Na5 $142) 25. gxh4 {[%emt 0:00:27]} Rb3 {[%emt 0:01:16]} (25... Na5 $16 {keeps fighting.}) 26. Bd1 {[%emt 0:01:53]} ({White should try} 26. h5 $18) 26... Qb6 {[%emt 0:00:53] aiming for ...Rb1.} 27. Bc2 {[%emt 0:00:36] Against Rb1} (27. Bxb3 $6 axb3 28. h5 Kd7 $14) 27... a3 {[%emt 0:02:45]} 28. Bxb3 {[%emt 0:03:33]} Qxb3 {[%emt 0:00:02]} 29. Qe2 {[%emt 0:00:51]} ({Better is} 29. h5 $1 $18) 29... Bb5 {[%emt 0:02:46]} 30. Kg2 $1 {[%emt 0:00:53]} f4 {[%emt 0:02:16][%cal Oc4e3]} 31. Qf2 {[%emt 0:02:16][%cal Oc1a3] Against Ne3+} (31. Bxf4 Ne3+ $1 32. Qxe3 Qb2+ 33. Kg1 (33. Qf2 $2 Qxa1 34. c4 dxc4 $19) 33... Qxa1+ 34. Qc1 Qxc1+ 35. Bxc1 a2 $19) 31... Qd1 {[%emt 0:02:56]} 32. Rf3 {[%emt 0:00:51][%mdl 8192] Prevents Ne3+.} (32. Qxf4 $16 Qe2+ 33. Qf2 Qe4+ 34. Rf3 (34. Kg1 Qg4+ 35. Qg2 Qd1+ 36. Qf1 Qxf1+ 37. Kxf1 Nd2+ 38. Kf2 Nb3 $14)) 32... Ne3+ $1 $19 {[%emt 0:00:55]} 33. Bxe3 {[%emt 0:00:13]} Qxa1 {[%emt 0:00:48]} 34. Rxf4 {[%emt 0:00:42]} Qd1 $2 {[%emt 0:01:05]} (34... Qb1 $19 {has better winning chances.} 35. c4 a2 36. cxb5 a1=Q 37. bxa6 Qxa6) 35. Qa2 $2 {[%emt 0:00:50][%mdl 8192]} (35. Kg3 $17) 35... Bd3 {[%emt 0:01:06] ...Qe1 is the strong threat.} 36. Qxa3 {[%emt 0:00:26] [#]} Qe2+ $2 {[%emt 0:00:16]} (36... Be4+ $1 $19 37. Kf2 {[#]} Rxh4 $3 {[%mdl 512]} 38. Rxh4 Qf3+ 39. Ke1 Qxe3+ 40. Kd1 Bf3+ 41. Kc2 Qf2+ 42. Kb3 Bd1+ 43. Kb4 Qxh4 44. Qxa6 Qxg5 45. Qc8+ Qd8) 37. Bf2 $11 {[%emt 0:00:14]} Be4+ {[%emt 0:00:07]} 38. Rxe4 $1 {[%emt 0:00:26]} Qxe4+ {[%emt 0:00:57]} 39. Kg1 {[%emt 0:00:12]} Qb1+ {[%emt 0:00:09]} 40. Kg2 {[%emt 0:00:02]} Qe4+ {[%emt 0:00:09][%mdl 1024] Black has compensation.} 41. Kg1 {[%emt 0:30:04]} Qb1+ {[%emt 0:31:13]} 42. Kg2 {[%emt 0:00:10] Quite a comeback for White.  Weighted Error Value: White=0.52/Black=0.49} 1/2-1/2

[Event "24th Hoogeschool Zeeland 2022"]
[Site "Vlissingen"]
[Date "2022.08.10"]
[Round "6.8"]
[White "Leenhouts, Koen"]
[Black "Nieuwelink, Kees"]
[Result "1-0"]
[ECO "A88"]
[WhiteElo "2442"]
[BlackElo "2200"]
[Annotator "TA"]
[PlyCount "65"]
[EventDate "2022.08.05"]
[EventType "swiss"]
[EventCountry "NED"]
[SourceTitle "playchess.com"]
[Source "ChessBase"]
[SourceQuality "1"]
[TimeControl "40/5400+30:1800+30"]

{[%evp 20,65,24,23,35,39,30,0,38,30,41,33,70,65,69,60,60,66,60,79,141,120,120,120,132,133,137,137,137,137,143,145,143,145,135,115,108,110,149,153,532,583,547,148,793,783,5381,5357]} 1. d4 {[%emt 0:00:05]} f5 {[%emt 0:00:08]} 2. c4 {[%emt 0:00:16]} Nf6 {[%emt 0:00:11]} 3. Nf3 {[%emt 0:00:14]} d6 {[%emt 0:00:21]} 4. g3 {[%emt 0:00:10]} g6 {[%emt 0:00:07]} 5. Bg2 {[%emt 0:00:07]} Bg7 {[%emt 0:00:04]} 6. O-O {[%emt 0:00:10]} O-O {[%emt 0:00:04]} 7. Nc3 {[%emt 0:00:17]} c6 {[%emt 0:00:08]} 8. d5 {[%emt 0:02:04]} e5 {[%emt 0:00:20]} 9. dxe6 {[%emt 0:00:11]} Bxe6 {[%emt 0:00:05]} 10. b3 {[%emt 0:01:39]} Na6 {[%emt 0:00:15]} 11. Ng5 {[%emt 0:00:15]} Re8 {[%emt 0:00:42] A88: Dutch Defence: Leningrad System: 5 Nf3 0-0 6 0-0 d6 7 Nc3 c6.} 12. Nxe6 {[%emt 0:04:40]} Rxe6 {[%emt 0:00:43]} 13. Bb2 {[%emt 0:00:11] [#]} (13. b4 {is more complex.} Ng4 14. Bd2 Qd7 15. Qb3) 13... Qe7 $146 {[%emt 0:06:05] The position is equal.} ({Predecessor:} 13... Nc5 14. Qc2 Qc7 15. Rad1 Rae8 16. e3 Nce4 17. Nxe4 Nxe4 18. Bxg7 Qxg7 19. Rd4 Ng5 {1-0 (31) Campos Calvo,S (2024)-Sanz Uson,M (2070) Madrid 2018}) 14. Qc2 {[%emt 0:01:53]} Rd8 {[%emt 0:13:53]} 15. Rad1 {[%emt 0:00:30]} d5 {[%emt 0:05:24]} 16. cxd5 {[%emt 0:10:28]} Nb4 {[%emt 0:00:14][%csl LRc2,LRd5]} 17. Qc1 {[%emt 0:01:15]} (17. Qb1 {is interesting.} Nfxd5 18. Nxd5 Nxd5 19. Bxd5 cxd5 20. Bxg7 Kxg7 21. e3) 17... Nbxd5 {[%emt 0:02:29]} 18. Nxd5 {[%emt 0:00:54]} (18. Bxd5 {seems wilder.} cxd5 19. e3 Rc6 20. Qb1) 18... Nxd5 {[%emt 0:00:09]} 19. Bxg7 {[%emt 0:01:25]} (19. Bxd5 {feels hotter.} cxd5 20. Bxg7 Kxg7 21. e3) 19... Qxg7 {[%emt 0:01:09] [#]} (19... Kxg7 $142 20. Bxd5 cxd5) 20. Rxd5 $1 {[%emt 0:07:02][%mdl 512]} cxd5 {[%emt 0:02:56] [#]} 21. Bxd5 $1 {[%emt 0:00:31][%mdl 512]} Rxd5 {[%emt 0:00:20]} (21... Qe5 22. Bxe6+) 22. Qc8+ {[%emt 0:00:08]} Qf8 {[%emt 0:01:48]} 23. Qxe6+ $16 {[%emt 0:00:09][%mdl 4096] Endgame KQR-KQR} Qf7 {[%emt 0:00:03]} 24. Qc8+ {[%emt 0:00:14]} Kg7 {[%emt 0:00:37]} 25. Rc1 {[%emt 0:04:23] Threatens to win with Rc7.} Rd7 {[%emt 0:01:19] Against Rc7} 26. e3 {[%emt 0:03:21] White is more active.} Qd5 {[%emt 0:05:24]} 27. Qc3+ {[%emt 0:01:12]} Kh6 {[%emt 0:02:37]} 28. Qb4 {[%emt 0:08:57]} g5 {[%emt 0:07:50]} 29. h4 {[%emt 0:03:36][%cal Bh2h4,Bh4h5][%mdl 32]} g4 $2 {[%emt 0:02:17]} (29... gxh4 $16 {is a better chance.} 30. Qxh4+ Kg6) 30. Qf4+ $18 {[%emt 0:00:45]} Kg6 {[%emt 0:01:10]} 31. Rc4 $2 {[%emt 0:06:59]} (31. Rc8 $18 {has better winning chances.}) 31... Qd1+ $2 {[%emt 0:03:24][%mdl 8192]} (31... Qf3 $16 32. Rd4 Qxf4 33. Rxf4 Rd2) 32. Kh2 {[%emt 0:02:17] White threatens Qg5+ and mate.} h6 {[%emt 0:00:05] Prevents Qg5+.} 33. h5+ {[%emt 0:00:21] Weighted Error Value: White=0.43/Black=0.58} 1-0

[Event "24th Hoogeschool Zeeland 2022"]
[Site "Vlissingen"]
[Date "2022.08.10"]
[Round "6.9"]
[White "De Jong, Tom"]
[Black "Pham, Khoi"]
[Result "1/2-1/2"]
[ECO "B51"]
[WhiteElo "2203"]
[BlackElo "2317"]
[Annotator "TA"]
[PlyCount "73"]
[EventDate "2022.08.05"]
[EventType "swiss"]
[EventCountry "NED"]
[SourceTitle "playchess.com"]
[Source "ChessBase"]
[SourceQuality "1"]
[TimeControl "40/5400+30:1800+30"]

{[%evp 9,73,11,9,8,4,2,18,15,10,14,18,0,0,0,0,0,0,0,0,0,20,-33,-4,-30,-13,-25,-20,-31,-10,-26,-23,-52,-6,-116,6,0,131,147,121,52,74,76,65,79,192,191,199,195,183,-62,-15,0,0,0,152,0,0,0,0,0,0,0,0,0,0,0]} 1. e4 {[%emt 0:00:05]} c5 {[%emt 0:03:53]} 2. Nf3 {[%emt 0:00:21]} d6 {[%emt 0:00:17]} 3. Bb5+ {[%emt 0:00:15][%cal Bf1b5,Bb5a4,Ba4c2][%mdl 32]} Nd7 {[%emt 0:00:06]} 4. Ba4 {[%emt 0:03:59]} Ngf6 {[%emt 0:00:32]} 5. O-O {[%emt 0:01:03]} e6 {[%emt 0:00:07]} 6. Re1 {[%emt 0:08:08] B51: Sicilian: Moscow Variation (3 Bb5+) without 3...Bd7.} a6 {[%emt 0:00:46] White must now prevent ...b5.} 7. c3 {[%emt 0:00:35]} b5 {[%emt 0:01:05]} 8. Bc2 {[%emt 0:00:07]} c4 {[%emt 0:01:18]} 9. a4 {[%emt 0:04:33]} Bb7 {[%emt 0:02:57]} 10. d4 {[%emt 0:04:21]} cxd3 {[%emt 0:01:18]} 11. Qxd3 {[%emt 0:04:16]} Nc5 {[%emt 0:00:54][%csl LRd3,LRe4]} 12. Qe2 {[%emt 0:00:10]} bxa4 {[%emt 0:00:08]} 13. e5 {[%emt 0:20:07]} dxe5 {[%emt 0:01:37]} 14. Nxe5 {[%emt 0:09:02]} Qd5 {[%emt 0:01:59][%csl Gb7][%cal Rd5g2] [#]} 15. Nf3 $146 {[%emt 0:07:15] Active counter play!} (15. f3 $11 Nb3 16. Bxb3 Qxb3 17. Na3) ({Predecessor:} 15. f3 Nb3 16. Kh1 Bd6 17. Bf4 Nxa1 18. Bxa4+ Kf8 19. Rd1 Qa2 20. Nd7+ Nxd7 21. Bxd6+ {½-½ (45) Vazquez,G (2527)-Swiercz,D (2649) Chess.com INT 2020}) 15... Be7 {[%emt 0:07:20]} 16. Be3 {[%emt 0:07:52]} O-O {[%emt 0:03:50]} 17. Nbd2 {[%emt 0:00:21]} a5 {[%emt 0:10:33]} 18. Bd4 {[%emt 0:03:50]} Rfe8 {[%emt 0:21:01]} 19. Qd1 {[%emt 0:10:23]} Nfd7 {[%emt 0:04:38] Prevents Re5.} 20. Nf1 {[%emt 0:00:53]} f6 {[%emt 0:03:30]} (20... Red8 $15 {should be considered.}) 21. Rxa4 {[%emt 0:05:48]} (21. Qb1 $11 {keeps the balance.}) 21... e5 {[%emt 0:08:32]} (21... Nxa4 $17 22. Bb3 Nxb2 23. Bxd5 Nxd1 24. Bxb7 Nb2 $1 25. Rxe6 Bf8 $1 26. Bxa8 (26. Bd5 $2 Kh8 $19) 26... Rxa8) 22. Ne3 {[%emt 0:01:46]} Qc6 {[%emt 0:01:37]} (22... Qf7 $1 $11 23. Bxc5 Nxc5) 23. Bxc5 $16 {[%emt 0:01:45]} Nxc5 {[%emt 0:00:08] [#]} 24. Rg4 {[%emt 0:01:50]} ({Better is} 24. Nh4 $1 $16) 24... Rad8 {[%emt 0:17:03] [#]} 25. Qb1 {[%emt 0:00:04]} e4 {[%emt 0:00:04]} 26. Nd4 {[%emt 0:01:39]} Qc8 {[%emt 0:01:02]} (26... Qc7 $16) 27. Qa2+ $18 {[%emt 0:01:01]} Kh8 {[%emt 0:00:07]} 28. Qf7 {[%emt 0:01:11][%csl Gg4][%cal Rf7g7]} ({Not} 28. Qxa5 g6 $11) 28... Bf8 {[%emt 0:01:00] [#]} 29. Nef5 $2 {[%emt 0:00:41] Pair of Knights!} (29. Rh4 $1 $18) 29... Rd7 {[%emt 0:02:39]} (29... Bd5 $15 {might be stronger.} 30. Qa7 Bb7) 30. Qh5 $11 {[%emt 0:00:22]} Re5 {[%emt 0:01:15][%cal Od7d4] Strongly threatening ...Rxd4!} 31. Re3 {[%emt 0:00:26]} Rxf5 $2 {[%emt 0:00:40]} 32. Nxf5 $2 {[%emt 0:00:21]} (32. Qxf5 $16 {Rh4 is the strong threat.} Rc7 33. Qh5) 32... Rd5 {[%emt 0:00:46] The position is equal.} 33. Qxh7+ {[%emt 0:00:35]} Kxh7 {[%emt 0:00:05]} 34. Rh3+ {[%emt 0:00:05]} Kg8 {[%emt 0:00:04]} 35. Nh6+ {[%emt 0:00:06]} Kh7 {[%emt 0:00:27]} 36. Nf5+ {[%emt 0:00:03]} Kg8 {[%emt 0:00:15]} 37. Nh6+ $1 {[%emt 0:00:23] Weighted Error Value: White=0.34/Black=0.32} 1/2-1/2

[Event "24th Hoogeschool Zeeland 2022"]
[Site "Vlissingen"]
[Date "2022.08.10"]
[Round "6.10"]
[White "Royal, Shreyas"]
[Black "Jeanne, Mickael"]
[Result "1-0"]
[ECO "E05"]
[WhiteElo "2353"]
[BlackElo "2145"]
[Annotator "TA"]
[PlyCount "131"]
[EventDate "2022.08.05"]
[EventType "swiss"]
[EventCountry "NED"]
[SourceTitle "playchess.com"]
[Source "ChessBase"]
[SourceQuality "1"]
[TimeControl "40/5400+30:1800+30"]

{[%evp 23,131,18,16,0,0,0,0,0,0,0,0,0,0,0,0,0,0,-20,22,19,21,20,29,35,29,41,52,19,36,28,46,46,47,47,47,43,47,19,19,20,79,72,76,81,67,81,77,72,104,109,112,53,53,53,54,54,99,97,184,176,132,97,249,249,249,232,183,177,881,170,168,168,249,249,249,249,996,245,245,245,245,168,29959,29962,29962,29960,12669,4133,29971,29972,29975,29976,29976,29977,29977,29978,29977,29972,29972,29969,5522,152,29981,304,29983,29984,29984,29985,29985,29986]} 1. d4 {[%emt 0:00:03]} d5 {[%emt 0:00:25]} 2. c4 {[%emt 0:00:06]} e6 {[%emt 0:00:03]} 3. Nf3 {[%emt 0:00:07]} Nf6 {[%emt 0:00:05]} 4. g3 {[%emt 0:00:05]} Be7 {[%emt 0:01:12]} 5. Bg2 {[%emt 0:00:09]} O-O {[%emt 0:00:08]} 6. O-O {[%emt 0:00:04]} dxc4 {[%emt 0:00:05]} 7. Qc2 {[%emt 0:00:08]} a6 {[%emt 0:00:41]} 8. a4 {[%emt 0:00:06]} Bd7 {[%emt 0:00:06]} 9. Qxc4 {[%emt 0:00:11]} Bc6 {[%emt 0:00:08]} 10. Bg5 {[%emt 0:00:11]} Bd5 {[%emt 0:00:39]} 11. Qc2 {[%emt 0:00:50]} Be4 {[%emt 0:00:09]} 12. Qc1 {[%emt 0:00:05]} Nc6 {[%emt 0:00:10][%cal Bb8c6,Bc6d4,Bd4b3,Bb3c1,Bc1d3][%mdl 32]} 13. Rd1 {[%emt 0:03:02] E05: Open Catalan: 5 Nf3 Be7.} Bxf3 {[%emt 0:02:31]} 14. Bxf3 {[%emt 0:01:22]} Nxd4 {[%emt 0:00:16] [#]} 15. Kg2 $146 {[%emt 0:01:28] Black must now prevent Qc4. The position is equal.} ({Predecessor:} 15. Nc3 Nxf3+ 16. exf3 Qc8 17. Ne4 Nxe4 18. Bxe7 Re8 19. fxe4 Rxe7 20. Qc5 Rd7 21. a5 {1-0 (66) Bryakin,M (2451)-Vazquez,G (2527) Chess.com INT 2020}) 15... c5 {[%emt 0:00:07]} 16. e3 {[%emt 0:07:27]} Nb3 {[%emt 0:00:54][%csl LRa1,LRc1]} 17. Rxd8 {[%emt 0:00:35]} Nxc1 {[%emt 0:00:08] Pair of Knights!} 18. Rxa8 {[%emt 0:02:15]} Rxa8 {[%emt 0:00:06]} 19. Nd2 {[%emt 0:00:59] Against Nb3} Nd3 {[%emt 0:11:41]} 20. Nc4 {[%emt 0:16:33]} h6 {[%emt 0:08:17]} 21. Bxf6 {[%emt 0:02:03]} Bxf6 {[%emt 0:03:25]} 22. Bxb7 {[%emt 0:00:07]} Rb8 {[%emt 0:11:07]} 23. Bxa6 {[%emt 0:00:10]} Nxb2 {[%emt 0:00:16]} 24. Nxb2 {[%emt 0:00:39]} Bxb2 $11 {[%emt 0:00:56][%mdl 4096] Endgame KRB-KRB} 25. Rd1 {[%emt 0:02:59]} Ra8 {[%emt 0:06:35]} 26. Rd6 {[%emt 0:01:10]} Bc3 {[%emt 0:12:46]} 27. Rc6 {[%emt 0:19:56]} Kf8 {[%emt 0:02:41]} 28. Bb5 {[%emt 0:00:43]} Bb4 {[%emt 0:00:53]} 29. Rc7 {[%emt 0:00:07]} g5 {[%emt 0:11:09]} 30. Bc6 {[%emt 0:08:55]} Rd8 {[%emt 0:18:57]} 31. Bf3 {[%emt 0:00:06]} Ke8 {[%emt 0:03:48]} (31... Re8 $11 {keeps the balance.}) 32. Bh5 $16 {[%emt 0:08:55]} Rd7 {[%emt 0:00:38] [#]} 33. Rxd7 {[%emt 0:00:04]} Kxd7 {[%emt 0:00:05]} 34. Bxf7 {[%emt 0:00:06] KB-KB} c4 {[%emt 0:01:58]} 35. Kf3 {[%emt 0:00:21]} c3 {[%emt 0:01:28] aiming for ...c2.} 36. Bg6 {[%emt 0:00:10]} Kd6 {[%emt 0:00:35]} 37. Ke2 {[%emt 0:00:37]} ({White should play} 37. Bc2 $16) 37... Kc5 $14 {[%emt 0:01:00]} 38. Kd3 {[%emt 0:02:10]} Ba5 {[%emt 0:00:07]} 39. Bf7 {[%emt 0:07:18]} Kd5 {[%emt 0:02:53]} 40. f4 {[%emt 0:10:09]} gxf4 {[%emt 0:00:35]} (40... Kd6 $16) 41. gxf4 $18 {[%emt 0:30:21]} ({Don't do} 41. exf4 Kd6 42. g4 Bc7 $16) 41... Kd6 {[%emt 0:02:46]} 42. e4 {[%emt 0:00:00][%cal Be3e4,Be4e5][%mdl 32]} Ke7 $2 {[%emt 0:09:59]} (42... e5 $16 {is a better defense.}) 43. Bh5 {[%emt 0:00:00]} Kf6 {[%emt 0:00:39]} 44. Bg4 {[%emt 0:00:00]} Kf7 {[%emt 0:05:41]} 45. e5 {[%emt 0:00:00]} Bb6 $2 {[%emt 0:03:29]} (45... Ke7 46. Kc2 Kd7) 46. Bd1 $2 {[%emt 0:00:00]} (46. Kxc3 Ba5+ 47. Kc4) 46... Kg6 {[%emt 0:01:31]} 47. Ke4 {[%emt 0:00:00]} ({Don't play} 47. Kxc3 $6 Kf5 $14) 47... Ba5 {[%emt 0:04:17]} (47... Kf7 $142 48. Kd3 Ke7) 48. Bc2 {[%emt 0:00:00] Threatens to win with Kd4+.} Bb6 {[%emt 0:01:00]} 49. h3 {[%emt 0:00:00]} Kf7 $2 {[%emt 0:01:22]} (49... h5 50. Bb1 h4) 50. Kd3 {[%emt 0:00:00]} Ke7 {[%emt 0:01:04]} 51. Kxc3 {[%emt 0:00:00]} Be3 {[%emt 0:00:05]} 52. f5 {[%emt 0:00:00]} exf5 $2 {[%emt 0:00:45]} (52... Bb6 $18 53. f6+ Kf7) 53. Bxf5 {[%emt 0:00:00]} Bf4 {[%emt 0:00:07]} 54. Kd4 {[%emt 0:00:00]} Bd2 {[%emt 0:00:08]} 55. Kd5 {[%emt 0:00:00]} (55. Kc5 $142 Ba5 56. Kc6) 55... h5 {[%emt 0:00:34]} 56. Bg6 {[%emt 0:00:00]} h4 {[%emt 0:00:32]} 57. Bf5 {[%emt 0:00:00]} Be1 {[%emt 0:00:34]} 58. Kc6 {[%emt 0:00:00]} Bc3 {[%emt 0:00:59] [#]} 59. e6 $1 {[%emt 0:00:00]} Kd8 {[%emt 0:00:06]} 60. Bd3 {[%emt 0:00:00]} Ke7 {[%emt 0:01:08]} 61. Bc4 {[%emt 0:00:00]} Kd8 {[%emt 0:00:09]} 62. Bd5 $2 {[%emt 0:00:00]} (62. Be2 $18 {and White stays clearly on top.} Bd2 63. Kb6 Be3+ 64. Kb7) 62... Bb4 $2 {[%emt 0:01:10] This move loses the game for Black.} (62... Ke7 $16 63. Bc4 Bd2) 63. Kb5 $2 {[%emt 0:00:00]} (63. Kb6 {mates} Ke7 64. a5 Kd6 65. Bb3 Be1 66. a6 Ke5 67. e7 Kf4 68. Kb7) 63... Be7 $2 {[%emt 0:00:09]} (63... Bc3 $18 64. Kb6 Bd4+ 65. Kc6 Bc3) 64. a5 {[%emt 0:00:00][%cal Ba4a5,Ba5a6][%mdl 32] White mates.} Kc7 {[%emt 0:00:12]} 65. a6 {[%emt 0:00:00]} Kb8 {[%emt 0:00:11]} 66. Kc6 {[%emt 0:00:00] Weighted Error Value: White=0.24 (precise) /Black=0.49} 1-0

[Event "24th Hoogeschool Zeeland 2022"]
[Site "Vlissingen"]
[Date "2022.08.10"]
[Round "6.11"]
[White "Shakhverdian, William"]
[Black "Bezemer, Arno"]
[Result "1-0"]
[ECO "E20"]
[WhiteElo "2040"]
[BlackElo "2278"]
[Annotator "TA"]
[PlyCount "59"]
[EventDate "2022.08.05"]
[EventType "swiss"]
[EventCountry "NED"]
[SourceTitle "playchess.com"]
[Source "ChessBase"]
[SourceQuality "1"]
[TimeControl "40/5400+30:1800+30"]

{[%evp 9,59,-15,-17,-4,22,-12,-12,-17,0,0,0,-4,0,-13,-6,-6,29,21,31,25,34,29,40,36,55,41,105,97,135,88,131,100,102,-6,-5,-8,-12,-19,-4,-5,-10,-9,-4,-37,0,-56,0,0,456,445,428,411]} 1. d4 {[%emt 0:00:02][%cal Bd2d4,Bd4d5][%mdl 32]} Nf6 {[%emt 0:00:07]} 2. c4 {[%emt 0:00:08]} e6 {[%emt 0:00:11]} 3. Nc3 {[%emt 0:00:05]} Bb4 {[%emt 0:00:08]} 4. f3 {[%emt 0:00:19]} c5 {[%emt 0:00:42]} 5. d5 {[%emt 0:01:20]} b5 {[%emt 0:00:12]} 6. e4 {[%emt 0:00:18] E20: Nimzo-Indian: 4 g3 and 4 f3.} d6 {[%emt 0:00:37] is now more promising than 6...bxc4.} 7. Bd2 {[%emt 0:10:57]} a6 {[%emt 0:01:15]} 8. Nge2 {[%emt 0:14:24] [#] The position is equal.} exd5 $146 {[%emt 0:11:56]} ({Predecessor:} 8... O-O 9. Nf4 exd5 10. cxd5 Nbd7 11. a4 bxa4 12. Qxa4 Ne5 13. Be2 Rb8 14. O-O c4 {½-½ (31) Mamedyarov,S (2782)-Aronian,L (2782) chess24.com INT 2021}) 9. Nxd5 {[%emt 0:02:26]} (9. cxd5 {keeps more tension.} Nbd7 10. Ng3 c4 11. Be3) 9... Nxd5 {[%emt 0:00:32]} 10. cxd5 {[%emt 0:02:01]} Bxd2+ {[%emt 0:00:24]} 11. Qxd2 {[%emt 0:00:04]} O-O {[%emt 0:02:59]} 12. Ng3 {[%emt 0:01:21]} Qh4 {[%emt 0:05:36]} 13. Bd3 {[%emt 0:01:08]} Nd7 {[%emt 0:10:07]} 14. O-O {[%emt 0:04:57]} Ne5 {[%emt 0:01:16]} 15. Be2 {[%emt 0:01:26]} f5 {[%emt 0:04:53]} 16. f4 {[%emt 0:06:52]} Ng6 {[%emt 0:01:18]} 17. Bh5 {[%emt 0:01:07]} Ne7 {[%emt 0:13:29] [#]} (17... Bb7 $14) 18. e5 $1 $16 {[%emt 0:08:14]} Rd8 {[%emt 0:10:54] [#]} 19. Bf3 {[%emt 0:05:11] White is more active.} (19. Rfe1 $142 $1) 19... Bb7 {[%emt 0:02:25]} 20. Rae1 {[%emt 0:21:51] exd6 is the strong threat.} g6 {[%emt 0:01:53]} 21. exd6 {[%emt 0:04:32]} (21. b4 $16 {Hoping for bxc5.} c4 22. Qd4) 21... Rxd6 $11 {[%emt 0:05:59][%cal Re7d5]} 22. Qe3 {[%emt 0:00:19]} Nxd5 {[%emt 0:01:29]} 23. Qxc5 {[%emt 0:00:56]} Qd8 {[%emt 0:11:39]} 24. Rd1 {[%emt 0:02:17]} Rc8 {[%emt 0:00:55][%cal Ba8c8,Bc8c7,Bc7d7][%mdl 32]} 25. Qa7 {[%emt 0:01:16]} Rc7 {[%emt 0:05:43]} 26. Rfe1 {[%emt 0:01:55]} Rcd7 {[%emt 0:01:07]} 27. Nf1 {[%emt 0:02:28]} (27. Qc5 $11) 27... Bc6 {[%emt 0:04:05]} (27... Ba8 $1 $15 28. Qd4 Nf6) 28. Qc5 $1 {[%emt 0:00:54]} Qc7 $2 {[%emt 0:01:17][%mdl 8192]} (28... Ba8 $11) 29. Bxd5+ $18 {[%emt 0:02:20]} Bxd5 {[%emt 0:00:43] [#]} 30. Rxd5 $1 {[%emt 0:00:27][%mdl 512] Weighted Error Value: White=0.18 (very precise) /Black=0.45} 1-0